[Event "S. A. Group BAN-chT 2018"]
[Site "Dhaka"]
[Date "2018.12.11"]
[Round "6"]
[White "Anisuzzaman, Jewel"]
[Black "Hossain, Monir"]
[Result "0-1"]
[ECO "A05"]
[WhiteElo "1902"]
[BlackElo "2038"]
[Annotator "NA RC"]
[PlyCount "115"]
[EventDate "2018.12.07"]
[EventType "team-tourn"]
[EventCountry "BAN"]
[SourceTitle "playchess.com"]
[Source "ChessBase"]
[SourceQuality "1"]
[TimeControl "5400+30"]

1. Nf3 {[%emt 0:01:06]} Nf6 {[%emt 0:00:00]} 2. g3 {[%emt 0:00:12]} g6 {[%emt 0:00:22]} 3. b3 {[%emt 0:01:47]} Bg7 {[%emt 0:00:19]} 4. Bb2 {[%emt 0:00:01]} O-O {[%emt 0:00:19]} 5. Bg2 {[%emt 0:00:00]} d6 {[%emt 0:02:45]} 6. O-O {[%emt 0:00:09] A05: Réti Opening: 1 Nf3 Nf6} a5 {[%emt 0:03:34]} (6... e5 7. c4 Re8 8. Nc3 e4 9. Nd4 c6 10. e3 Na6 11. d3 exd3 12. Qxd3 Nc5 13. Qc2 a5 14. a3 h5 15. h3 Bd7 16. b4 {1-0 (31) Karjakin,S (2782)-Mamedyarov,S (2808) Stavanger 2018}) 7. c4 {[%emt 0:00:49]} Nc6 {[%emt 0:00:20]} 8. d3 {[%emt 0:03:10]} Re8 $146 {[%emt 0:01:40]} ({Predecessor:} 8... e5 9. Nbd2 h6 10. h3 Nh7 11. e4 Be6 12. Kh2 Qd7 13. a3 Rab8 14. Rb1 f5 15. exf5 gxf5 16. Nh4 Ne7 17. f4 {½-½ (17) Cernicek,D (2149)-Bogic,S (2286) Pancevo 2005}) 9. Nbd2 {[%emt 0:01:41]} e5 {[%emt 0:00:46]} 10. Rc1 {[%emt 0:03:47]} a4 {[%emt 0:01:34]} 11. a3 {[%emt 0:01:20]} axb3 {[%emt 0:00:21]} 12. Qxb3 {[%emt 0:01:06]} Nd7 {[%emt 0:00:38]} 13. Ne4 {[%emt 0:02:28]} Qe7 {[%emt 0:01:05]} 14. e3 {[%emt 0:04:09]} h6 {[%emt 0:06:48]} 15. Rfe1 {[%emt 0:08:14]} Ra7 {[%emt 0:08:53]} 16. Qc2 {[%emt 0:04:55]} Nb6 {[%emt 0:05:10]} 17. Nc3 {[%emt 0:04:25]} Qd8 {[%emt 0:01:25]} 18. Nd2 {[%emt 0:02:37]} Bf5 {[%emt 0:00:33]} 19. Nde4 {[%emt 0:15:43]} Ra5 {[%emt 0:05:15]} 20. Nd5 {[%emt 0:03:21]} Na4 {[%emt 0:00:56]} 21. Ba1 {[%emt 0:04:55]} Bxe4 {[%emt 0:02:12]} 22. dxe4 {[%emt 0:01:13]} Nc5 {[%emt 0:04:01]} 23. Bb2 {[%emt 0:00:54]} Nb8 {[%emt 0:01:08]} 24. Red1 {[%emt 0:01:09]} Ra7 {[%emt 0:07:34]} 25. Rb1 {[%emt 0:00:40]} Nba6 {[%emt 0:02:43]} 26. Bc3 {[%emt 0:03:20]} b6 {[%emt 0:00:49]} 27. Bh3 {[%emt 0:04:03]} Ne6 {[%emt 0:04:33]} 28. Ra1 {[%emt 0:03:24]} Ng5 {[%emt 0:02:57]} 29. Bg2 {[%emt 0:00:23]} Nc5 {[%emt 0:00:18]} 30. f4 {[%emt 0:03:44]} exf4 {[%emt 0:02:03]} 31. Bxg7 {[%emt 0:01:07]} Kxg7 {[%emt 0:00:31]} 32. e5 {[%emt 0:08:23]} f3 {[%emt 0:01:22]} ({Not} 32... dxe5 33. exf4 exf4 {[#]} 34. Nxb6 $1 $11 {[%mdl 512]}) 33. exd6 {[%emt 0:02:49]} cxd6 $19 {[%emt 0:01:28]} 34. Qb2+ {[%emt 0:00:35]} f6 {[%emt 0:01:13]} 35. Bf1 {[%emt 0:00:11]} (35. Bh1 $17) 35... Na4 {[%emt 0:01:08]} (35... Nge4 $19 {has better winning chances.} 36. Bh3 h5) 36. Qb4 {[%emt 0:03:19]} Qd7 {[%emt 0:03:40]} 37. Nf4 {[%emt 0:01:19]} Ne4 {[%emt 0:00:52]} 38. Bd3 {[%emt 0:01:16]} Nac5 {[%emt 0:01:17]} 39. Bf1 {[%emt 0:00:33]} g5 {[%emt 0:00:53]} 40. Bh3 {[%emt 0:00:30]} g4 {[%emt 0:02:24]} 41. Bf1 {[%emt 0:00:02]} Qc6 {[%emt 0:02:01]} 42. Rd5 {[%emt 0:01:01]} Re5 {[%emt 0:01:06]} 43. Rb1 {[%emt 0:00:49]} Ra6 {[%emt 0:01:14]} 44. Rbd1 {[%emt 0:02:00]} Qa4 {[%emt 0:00:43]} 45. Rxd6 {[%emt 0:01:32]} Qxb4 {[%emt 0:02:26]} 46. axb4 {[%emt 0:00:01]} Nxd6 {[%emt 0:00:24]} 47. Rxd6 {[%emt 0:00:01]} Ne4 {[%emt 0:05:55]} 48. Rd7+ {[%emt 0:00:08]} Kf8 {[%emt 0:00:15]} 49. c5 {[%emt 0:00:16]} b5 {[%emt 0:00:28]} 50. Ng6+ {[%emt 0:00:22]} Kg8 {[%emt 0:00:16]} 51. Nxe5 {[%emt 0:00:35]} fxe5 {[%emt 0:00:17]} 52. Bxb5 {[%emt 0:00:31]} Ra1+ {[%emt 0:00:21]} 53. Bf1 {[%emt 0:00:01]} Rc1 {[%emt 0:03:00]} 54. b5 {[%emt 0:02:00]} Ng5 {[%emt 0:03:54]} 55. h4 {[%emt 0:02:06]} Nh3+ {[%emt 0:00:53]} 56. Kh2 {[%emt 0:00:00]} Rxf1 {[%emt 0:00:22]} 57. c6 {[%emt 0:00:11]} f2 {[%emt 0:00:47]} 58. Rd1 {[%emt 0:02:37]} 0-1

[Event "S. A. Group BAN-chT 2018"]
[Site "Dhaka"]
[Date "2018.12.13"]
[Round "8"]
[White "Chowdhury, Sohel"]
[Black "Zia, Tahsin Tajwar"]
[Result "0-1"]
[ECO "B26"]
[WhiteElo "2012"]
[BlackElo "1925"]
[Annotator "NA"]
[PlyCount "40"]
[EventDate "2018.12.07"]
[EventType "team-tourn"]
[EventCountry "BAN"]
[SourceTitle "playchess.com"]
[Source "ChessBase"]
[SourceQuality "1"]
[TimeControl "5400+30"]

1. e4 {[%emt 1:30:30]} c5 {[%emt 1:30:30]} 2. Nc3 {[%emt 0:00:30]} Nc6 {[%emt 0:00:30]} 3. g3 {[%emt 0:00:30]} g6 {[%emt 0:00:30]} 4. Bg2 {[%emt 0:00:30]} Bg7 {[%emt 0:00:30]} 5. d3 {[%emt 0:00:30]} d6 {[%emt 0:00:30]} 6. Be3 {[%emt 0:00:30]} Nf6 {[%emt 0:00:30]} 7. h3 {[%emt 0:00:30]} Rb8 {[%emt 0:00:30]} 8. f4 {[%emt 0:00:30] B26: Closed Sicilian: 3 g3, lines with early Be3} O-O {[%emt 0:00:30]} (8... Nd4 9. Nce2 Nd7 10. c3 Nxe2 11. Nxe2 b5 12. Qd2 Bb7 13. O-O O-O 14. g4 e6 15. f5 exf5 16. gxf5 {½-½ (37) Li,R (2535)-Xiong,J (2641) Saint Louis 2016}) 9. Nf3 {[%emt 0:00:30]} Nd7 {[%emt 0:00:30]} 10. f5 {[%emt 0:00:30]} b5 {[%emt 0:00:30]} 11. Qd2 {[%emt 0:00:30]} b4 {[%emt 0:00:30]} 12. Nd1 {[%emt 0:00:30]} Nde5 {[%emt 0:00:30]} 13. O-O $146 {[%emt 0:00:30]} ({Predecessor:} 13. Bh6 Nxf3+ 14. Bxf3 Nd4 15. O-O Bxh6 16. Qxh6 Nxc2 {½-½ (32) Pallesen,J (2067)-Kistrup,N (2029) Ballerup 2015}) 13... Ba6 {[%emt 0:00:30]} 14. Bh6 {[%emt 0:00:30]} c4 {[%emt 0:00:30]} 15. Bxg7 {[%emt 0:00:30]} Kxg7 {[%emt 0:00:30]} 16. Nxe5 {[%emt 0:00:30]} dxe5 {[%emt 0:00:30]} 17. Ne3 {[%emt 0:00:30]} Qd4 {[%emt 0:00:30]} 18. Kh2 {[%emt 0:00:30]} (18. c3 $11 {keeps the balance.} bxc3 19. bxc3) 18... f6 {[%emt 0:00:30]} 19. h4 {[%emt 0:00:30]} cxd3 {[%emt 0:00:30]} 20. Ng4 {[%emt 0:00:30] [#]} gxf5 $17 {[%emt 0:00:30]} 0-1

[Event "S. A. Group BAN-chT 2018"]
[Site "Dhaka"]
[Date "2018.12.13"]
[Round "8"]
[White "Mihir Lal, Das"]
[Black "Mohammad Fahad, Rahman"]
[Result "0-1"]
[ECO "A07"]
[WhiteElo "2010"]
[BlackElo "2381"]
[Annotator "ChessBase"]
[PlyCount "90"]
[EventDate "2018.12.07"]
[EventType "team-tourn"]
[EventCountry "BAN"]
[SourceTitle "playchess.com"]
[Source "ChessBase"]
[SourceQuality "1"]
[TimeControl "5400+30"]

1. Nf3 {[%emt 0:00:00]} g6 {[%emt 0:01:24]} 2. g3 {[%emt 0:00:00]} Bg7 {[%emt 0:00:08]} 3. Bg2 {[%emt 0:00:00]} e5 {[%emt 0:00:20]} 4. d3 {[%emt 0:01:44]} d5 {[%emt 0:01:08]} 5. O-O {[%emt 0:00:11]} Nc6 {[%emt 0:01:10]} 6. c4 {[%emt 0:01:29]} d4 {[%emt 0:06:29]} 7. e4 {[%emt 0:23:24]} dxe3 {[%emt 0:02:32]} 8. fxe3 {[%emt 0:02:51]} Nge7 {[%emt 0:01:06]} 9. Nc3 {[%emt 0:05:52]} O-O {[%emt 0:07:16]} 10. e4 {[%emt 0:02:49]} Nd4 {[%emt 0:01:06]} 11. h3 {[%emt 0:09:52]} c6 {[%emt 0:01:21]} 12. Kh2 {[%emt 0:02:36]} Nxf3+ {[%emt 0:05:04]} 13. Rxf3 {[%emt 0:00:49]} Be6 {[%emt 0:00:32]} 14. Be3 {[%emt 0:01:51]} Qd7 {[%emt 0:06:55]} 15. Qc2 {[%emt 0:00:23]} b6 16. Rd1 {[%emt 0:00:30]} f5 17. Bg5 {[%emt 0:00:30]} h6 18. Bxe7 {[%emt 0:00:30]} Qxe7 19. exf5 {[%emt 0:00:30]} gxf5 20. Qe2 {[%emt 0:00:30]} Rad8 21. Re3 {[%emt 0:00:30]} Qc5 22. a3 {[%emt 0:00:30]} Bf7 23. Rc1 {[%emt 0:00:30]} Bg6 24. Qf3 {[%emt 0:00:30]} e4 25. dxe4 {[%emt 0:00:30]} fxe4 26. Qg4 {[%emt 0:00:30]} Bf5 27. Qh5 {[%emt 0:00:30]} Qxc4 28. Nxe4 {[%emt 0:00:30]} Qf7 29. Qxf7+ {[%emt 0:00:30]} Rxf7 30. Nc3 {[%emt 0:00:30]} Rd6 31. Rc2 {[%emt 0:00:30]} Bd4 32. Re8+ {[%emt 0:00:30]} Kg7 33. Ne4 {[%emt 0:00:30]} Rdd7 34. g4 {[%emt 0:00:30]} Bg6 35. Ng3 {[%emt 0:00:30]} c5 36. b3 {[%emt 0:00:30]} Rf2 37. Rxf2 {[%emt 0:00:30]} Bxf2 38. Re2 {[%emt 0:00:30]} Bxg3+ 39. Kxg3 {[%emt 0:00:30]} Rd3+ 40. Kf4 {[%emt 0:00:30]} Kf6 41. Rb2 {[%emt 0:00:30]} Bf7 42. b4 {[%emt 0:00:30]} c4 43. a4 {[%emt 0:00:30]} c3 44. Rb1 {[%emt 0:00:30]} c2 45. Rc1 {[%emt 0:00:30]} Bb3 0-1

[Event "S. A. Group BAN-chT 2018"]
[Site "Dhaka"]
[Date "2018.12.13"]
[Round "8"]
[White "Hamid, Rani"]
[Black "Hasan, Eunus"]
[Result "1/2-1/2"]
[ECO "B42"]
[WhiteElo "1932"]
[BlackElo "2154"]
[Annotator "NA"]
[PlyCount "38"]
[EventDate "2018.12.07"]
[EventType "team-tourn"]
[EventCountry "BAN"]
[SourceTitle "playchess.com"]
[Source "ChessBase"]
[SourceQuality "1"]
[TimeControl "5400+30"]

1. e4 {[%emt 0:02:25]} c5 {[%emt 0:00:00]} 2. Nf3 {[%emt 0:00:08]} e6 {[%emt 0:00:00]} 3. d4 {[%emt 0:00:01]} cxd4 {[%emt 0:00:00]} 4. Nxd4 {[%emt 0:00:02]} a6 {[%emt 0:00:07]} 5. Bd3 {[%emt 0:00:19]} g6 {[%emt 0:00:10]} 6. O-O {[%emt 0:00:48]} Bg7 {[%emt 0:00:03]} 7. Be3 {[%emt 0:01:01]} Ne7 {[%emt 0:00:45]} 8. c4 {[%emt 0:01:33]} d5 {[%emt 0:05:51] B42: Sicilian: Kan Variation: 5 Bd3} 9. exd5 $146 {[%emt 0:01:38]} ({Predecessor:} 9. cxd5 exd5 10. Nc3 O-O 11. Re1 Nbc6 12. Nxc6 bxc6 13. Bc5 Be6 14. Rc1 Re8 15. Qa4 dxe4 16. Bxe4 {1-0 (34) Amonatov,F (2620)-Hasan,E (2155) Dhaka 2016}) 9... exd5 {[%emt 0:00:03]} 10. Nc3 {[%emt 0:04:01]} O-O {[%emt 0:02:36]} 11. Rc1 {[%emt 0:03:12]} Nbc6 {[%emt 0:09:36]} 12. Nxc6 {[%emt 0:00:51]} bxc6 {[%emt 0:00:05]} 13. Bc5 {[%emt 0:02:03]} Be6 {[%emt 0:04:58]} 14. Qa4 {[%emt 0:04:13]} Re8 {[%emt 0:01:34]} 15. Rfe1 {[%emt 0:03:42]} dxc4 {[%emt 0:05:47]} 16. Bxc4 {[%emt 0:00:24]} Nd5 {[%emt 0:00:39]} 17. Bxd5 {[%emt 0:12:24]} Bxd5 {[%emt 0:01:56]} 18. Be3 {[%emt 0:06:42]} Bxc3 {[%emt 0:09:44]} 19. bxc3 {[%emt 0:04:11]} Re4 $11 {[%emt 0:02:19]} 1/2-1/2

[Event "S. A. Group BAN-chT 2018"]
[Site "Dhaka"]
[Date "2018.12.14"]
[Round "9"]
[White "Ahmed, Feroz"]
[Black "Mihir Lal, Das"]
[Result "*"]
[ECO "A10"]
[WhiteElo "1904"]
[BlackElo "2010"]
[Annotator "NA RC"]
[PlyCount "42"]
[EventDate "2018.12.07"]
[EventType "team-tourn"]
[EventCountry "BAN"]
[SourceTitle "playchess.com"]
[Source "ChessBase"]
[SourceQuality "1"]
[TimeControl "5400+30"]

1. c4 {[%emt 1:30:30]} d5 {[%emt 1:30:30]} 2. cxd5 {[%emt 0:00:30]} Nf6 {[%emt 0:00:30]} 3. e4 {[%emt 0:00:30] A10: English Opening: Unusual Replies for Black} c6 {[%emt 0:00:30]} 4. dxc6 {[%emt 0:00:30]} (4. d4 cxd5 5. Nc3 Nc6 6. Nf3 Bg4 7. exd5 Nxd5 8. Qb3 Bxf3 9. gxf3 e6 10. Qxb7 Nxd4 11. Bb5+ Nxb5 12. Qc6+ Ke7 13. Qxb5 Qd7 14. Nxd5+ Qxd5 15. Qxd5 exd5 16. Bf4 Kf6 17. O-O-O Bc5 18. Rxd5 Bxf2 19. Kb1 Rhe8 20. a4 Re2 21. Rc1 Rae8 22. b4 h6 23. Rc6+ R8e6 24. b5 {½-½ (43) Sulskis,S (2582)-Dreev,A (2682) Tallinn 2004}) 4... Nxc6 {[%emt 0:00:30]} 5. Nc3 {[%emt 0:00:30]} e5 {[%emt 0:00:30]} 6. Bb5 {[%emt 0:00:30]} Bc5 {[%emt 0:00:30]} 7. Nf3 {[%emt 0:00:30]} O-O {[%emt 0:00:30]} 8. Bxc6 $146 {[%emt 0:00:30]} ({Predecessor:} 8. O-O Nd4 9. Nxe5 Qd6 10. Nf3 Ng4 {0-1 (39) Claesen,P (2392)-Hovhannisyan,M (2294) Westerlo 2004}) 8... bxc6 {[%emt 0:00:30]} 9. Qa4 {[%emt 0:00:30]} Qb6 {[%emt 0:00:30]} 10. Nd1 {[%emt 0:00:30] [#]} Ng4 $2 {[%emt 0:00:30]} ({Black should play} 10... Ba6 $1 $19 11. Ne3 Rfe8) 11. Ne3 {[%emt 0:00:30]} Nxe3 12. fxe3 f6 {[%emt 0:01:00]} 13. O-O {[%emt 0:01:00]} Ba6 14. Rf2 {[%emt 0:00:30]} Rfd8 {[%emt 0:01:00]} 15. b4 {[%emt 0:00:30]} Be7 {[%emt 0:00:30]} 16. Qb3+ {[%emt 0:00:30]} Kh8 {[%emt 0:00:30]} 17. Rb1 {[%emt 0:00:30]} Bd3 {[%emt 0:00:30]} 18. Rb2 {[%emt 0:00:30]} Bxe4 {[%emt 0:00:30]} 19. Ne1 {[%emt 0:00:30] [#]} a5 $1 {[%emt 0:00:30]} 20. bxa5 {[%emt 0:00:30]} Qc5 {[%emt 0:00:30]} 21. Nc2 {[%emt 0:00:30]} Rxa5 $19 {[%emt 0:00:30]} *

[Event "S. A. Group BAN-chT 2018"]
[Site "Dhaka"]
[Date "2018.12.14"]
[Round "9"]
[White "Sourath Biswas"]
[Black "Jamal Uddin"]
[Result "*"]
[ECO "A14"]
[WhiteElo "1881"]
[BlackElo "2001"]
[Annotator "NA RC"]
[PlyCount "40"]
[EventDate "2018.12.07"]
[EventType "team-tourn"]
[EventCountry "BAN"]
[SourceTitle "playchess.com"]
[Source "ChessBase"]
[SourceQuality "1"]
[TimeControl "5400+30"]

1. c4 {[%emt 1:30:30]} Nf6 {[%emt 1:30:30]} 2. g3 {[%emt 0:00:30]} e6 {[%emt 0:00:30]} 3. Bg2 {[%emt 0:00:30]} d5 {[%emt 0:00:30]} 4. Nf3 {[%emt 0:00:30]} Be7 {[%emt 0:00:30]} 5. O-O {[%emt 0:00:30]} O-O {[%emt 0:00:30]} 6. b3 {[%emt 0:00:30]} b6 {[%emt 0:00:30]} 7. Bb2 {[%emt 0:00:30]} Bb7 {[%emt 0:00:30]} 8. d3 {[%emt 0:00:30]} c5 {[%emt 0:00:30]} 9. Nbd2 {[%emt 0:00:30]} Nbd7 {[%emt 0:00:30]} 10. a4 {[%emt 0:00:30]} Qc7 {[%emt 0:00:30]} 11. Ne1 {[%emt 0:00:30]} Rfd8 {[%emt 0:00:30]} 12. Qc2 $15 {[%emt 0:00:30]} (12. a5 $11) 12... Rac8 {[%emt 0:00:30]} 13. Rc1 {[%emt 0:00:30]} d4 {[%emt 0:00:30]} 14. Ne4 {[%emt 0:00:30]} Nxe4 {[%emt 0:00:30]} 15. dxe4 {[%emt 0:00:30]} Nf6 {[%emt 0:00:30]} 16. f3 e5 {[%emt 0:00:30]} 17. Nd3 Re8 {[%emt 0:00:30]} 18. e3 {[%emt 0:01:30]} Rcd8 {[%emt 0:00:30]} 19. exd4 {[%emt 0:00:30]} exd4 {[%emt 0:00:30]} 20. Rce1 {[%emt 0:00:30]} Bd6 {[%emt 0:00:30]} *

[Event "S. A. Group BAN-chT 2018"]
[Site "Dhaka"]
[Date "2018.12.15"]
[Round "10"]
[White "Abu Sufian, Shakil"]
[Black "Chowdhury, Sohel"]
[Result "1-0"]
[ECO "B19"]
[WhiteElo "2230"]
[BlackElo "2012"]
[Annotator "NA"]
[PlyCount "69"]
[EventDate "2018.12.07"]
[EventType "team-tourn"]
[EventCountry "BAN"]
[SourceTitle "playchess.com"]
[Source "ChessBase"]
[SourceQuality "1"]
[TimeControl "5400+30"]

1. e4 {[%emt 0:00:00]} c6 {[%emt 0:00:00]} 2. d4 {[%emt 0:00:00]} d5 {[%emt 0:00:05]} 3. Nc3 {[%emt 0:00:00]} dxe4 {[%emt 0:00:12]} 4. Nxe4 {[%emt 0:00:00]} Bf5 {[%emt 0:00:13]} 5. Ng3 {[%emt 0:00:00]} Bg6 {[%emt 0:00:16]} 6. h4 {[%emt 0:00:02]} h6 {[%emt 0:00:09]} 7. Nf3 {[%emt 0:00:04]} Nd7 {[%emt 0:00:25]} 8. h5 {[%emt 0:00:21]} Bh7 {[%emt 0:00:03]} 9. Bd3 {[%emt 0:00:04]} Bxd3 {[%emt 0:00:26]} 10. Qxd3 {[%emt 0:00:02]} e6 {[%emt 0:00:22]} 11. Bd2 {[%emt 0:00:07]} Ngf6 {[%emt 0:00:15]} 12. O-O-O {[%emt 0:00:08]} Be7 {[%emt 0:00:18]} 13. Kb1 {[%emt 0:05:24]} O-O {[%emt 0:01:51]} 14. Ne4 {[%emt 0:02:25]} Nxe4 {[%emt 0:00:22] B19: Classical Caro-Kann: 4...Bf5 main line} (14... c5 15. g4 Nxg4 16. Qe2 Qb6 17. Ne5 Ndxe5 18. dxe5 f5 19. exf6 Nxf6 20. Nc3 Rad8 21. Rhg1 Kh8 22. Rg6 {½-½ (38) Saric,I (2662)-Nisipeanu,L (2672) Heraklio 2017}) 15. Qxe4 {[%emt 0:00:03]} Nf6 {[%emt 0:00:50]} 16. Qe2 {[%emt 0:00:37]} Qd5 {[%emt 0:03:35]} 17. Be3 {[%emt 0:10:11]} b5 {[%emt 0:11:42] LiveBook: 16 Games} 18. Ne5 {[%emt 0:20:05]} a5 {[%emt 0:12:17]} 19. f3 {[%emt 0:02:50]} a4 {[%emt 1:06:09]} 20. g4 {[%emt 0:02:12]} a3 {[%emt 0:00:00]} 21. b3 {[%emt 0:00:09]} Qd6 {[%emt 0:00:00]} 22. Qd3 $146 {[%emt 0:15:42]} ({Predecessor:} 22. f4) 22... Nd5 {[%emt 0:00:00]} 23. f4 {[%emt 0:01:54]} f6 {[%emt 0:00:00]} 24. Ng6 {[%emt 0:00:41]} Rfe8 {[%emt 0:00:00]} 25. Bd2 {[%emt 0:00:41]} c5 {[%emt 0:00:00]} 26. g5 {[%emt 0:02:49]} c4 {[%emt 0:00:00]} 27. Qh3 {[%emt 0:02:13]} cxb3 {[%emt 0:00:00]} 28. cxb3 {[%emt 0:04:13]} b4 {[%emt 0:00:00]} 29. gxh6 {[%emt 0:01:06]} f5 $2 {[%emt 0:00:00]} (29... gxh6 30. f5 Bf8 31. Nxf8 Kxf8) 30. h7+ {[%emt 0:06:28]} Kxh7 {[%emt 0:00:00]} 31. h6 {[%emt 0:01:05]} Nf6 {[%emt 0:00:00]} 32. Rdg1 {[%emt 0:12:45]} Ng4 {[%emt 0:00:00]} 33. hxg7+ {[%emt 0:01:25]} Kxg7 {[%emt 0:00:00]} 34. Qh7+ $18 {[%emt 0:01:19]} Kf6 {[%emt 0:00:00]} 35. Ne5 {[%emt 0:00:18]} 1-0

[Event "S. A. Group BAN-chT 2018"]
[Site "Dhaka"]
[Date "2018.12.15"]
[Round "10"]
[White "Mohammed Abdul, Malek"]
[Black "Patil, Pratik"]
[Result "0-1"]
[ECO "D00"]
[WhiteElo "2208"]
[BlackElo "2178"]
[Annotator "NA"]
[PlyCount "78"]
[EventDate "2018.12.07"]
[EventType "team-tourn"]
[EventCountry "BAN"]
[SourceTitle "playchess.com"]
[Source "ChessBase"]
[SourceQuality "1"]
[TimeControl "5400+30"]

1. d4 {[%emt 0:00:00]} Nf6 {[%emt 0:00:00]} 2. Nf3 {[%emt 0:00:00]} g6 {[%emt 0:00:00]} 3. Nc3 {[%emt 0:00:05]} d5 {[%emt 0:00:11]} 4. Bf4 {[%emt 0:00:03]} Bg7 {[%emt 0:00:17]} 5. e3 {[%emt 0:00:07]} O-O {[%emt 0:00:37]} 6. h3 {[%emt 0:00:41] LiveBook: 61 Games} c5 {[%emt 0:01:13]} 7. Qd2 {[%emt 0:00:38] D00: 1 d4 d5: Unusual lines} (7. Be2 Nc6 8. O-O Bf5 9. Ne5 Rc8 10. Nxc6 Rxc6 11. Be5 a6 12. Bf3 cxd4 13. exd4 e6 14. Re1 g5 15. Qd2 {0-1 (44) Ni,H (2671)-Saric,I (2669) Riadh 2017}) 7... Nc6 {[%emt 0:06:38]} 8. dxc5 {[%emt 0:02:40]} Ne4 {[%emt 0:11:11]} 9. Nxe4 {[%emt 0:05:10]} dxe4 {[%emt 0:00:09]} 10. Nd4 $146 {[%emt 0:00:08]} ({Predecessor:} 10. Ng5 Bxb2 11. Rb1 Qxd2+ 12. Kxd2 Rd8+ 13. Ke2 {1-0 (34) Van Eetvelde,W (2102)-Boogaard,S Maastricht 2015}) 10... Nxd4 {[%emt 0:03:52]} 11. exd4 {[%emt 0:00:13]} Qxd4 {[%emt 0:00:22]} 12. Qxd4 {[%emt 0:00:12]} Bxd4 {[%emt 0:00:02]} 13. O-O-O {[%emt 0:00:32]} Bxf2 {[%emt 0:09:30]} 14. Bh6 {[%emt 0:00:42]} Be6 {[%emt 0:00:19]} 15. Bxf8 {[%emt 0:00:32]} Kxf8 {[%emt 0:00:30]} 16. Be2 {[%emt 0:06:16]} Bxc5 {[%emt 0:03:03]} 17. a3 {[%emt 0:00:03]} f5 {[%emt 0:02:35]} 18. Rhf1 {[%emt 0:00:22]} Kg7 {[%emt 0:02:12]} 19. Kb1 {[%emt 0:00:32]} Kf6 {[%emt 0:12:22]} 20. c4 {[%emt 0:11:38]} Ke5 {[%emt 0:06:25]} 21. Kc2 {[%emt 0:05:35]} Bd4 {[%emt 0:09:05]} 22. Kb1 {[%emt 0:07:44]} Be3 {[%emt 0:06:48]} 23. Kc2 {[%emt 0:04:11]} Rc8 {[%emt 0:07:41]} 24. Kc3 {[%emt 0:00:59]} b5 {[%emt 0:00:20]} 25. b3 {[%emt 0:00:35]} a5 {[%emt 0:00:27]} 26. a4 $2 {[%emt 0:05:55]} (26. Rfe1 {was called for.}) 26... Bd4+ {[%emt 0:02:43]} 27. Kd2 {[%emt 0:08:54]} e3+ {[%emt 0:02:38]} 28. Kc2 {[%emt 0:00:36]} bxc4 {[%emt 0:00:17]} 29. bxc4 {[%emt 0:01:49]} Bxc4 {[%emt 0:00:16]} 30. Bxc4 {[%emt 0:00:17]} Rxc4+ {[%emt 0:00:26]} 31. Kd3 {[%emt 0:00:05]} Rxa4 {[%emt 0:00:37]} 32. g3 {[%emt 0:02:31]} g5 {[%emt 0:01:02]} 33. Rb1 {[%emt 0:00:24]} Ra3+ {[%emt 0:00:17]} 34. Ke2 {[%emt 0:03:34]} Ke4 {[%emt 0:00:15]} 35. Rbc1 {[%emt 0:01:02]} Ra2+ {[%emt 0:01:15]} 36. Ke1 {[%emt 0:00:04]} f4 {[%emt 0:02:27]} 37. gxf4 {[%emt 0:01:10]} gxf4 {[%emt 0:00:02]} 38. h4 {[%emt 0:00:09]} f3 {[%emt 0:00:11]} 39. h5 {[%emt 0:00:23]} Bc3+ {[%emt 0:00:32]} 0-1

[Event "S. A. Group BAN-chT 2018"]
[Site "Dhaka"]
[Date "2018.12.15"]
[Round "10"]
[White "Hasan, Eunus"]
[Black "Subhayan Kundu"]
[Result "0-1"]
[ECO "C03"]
[WhiteElo "2154"]
[BlackElo "2185"]
[Annotator "NA"]
[PlyCount "66"]
[EventDate "2018.12.07"]
[EventType "team-tourn"]
[EventCountry "BAN"]
[SourceTitle "playchess.com"]
[Source "ChessBase"]
[SourceQuality "1"]
[TimeControl "5400+30"]

1. e4 {[%emt 1:30:30]} e6 {[%emt 1:30:30]} 2. d3 {[%emt 0:00:30]} d5 {[%emt 0:00:30]} 3. Nd2 {[%emt 0:00:30]} Nf6 {[%emt 0:00:30]} 4. Ngf3 {[%emt 0:00:30]} Bc5 {[%emt 0:00:30]} 5. e5 {[%emt 0:00:30]} Nfd7 {[%emt 0:00:30]} 6. d4 {[%emt 0:00:30]} Be7 {[%emt 0:00:30]} 7. Bd3 {[%emt 0:00:30]} c5 {[%emt 0:00:30]} 8. O-O {[%emt 0:00:30]} cxd4 {[%emt 0:00:30]} 9. Re1 {[%emt 0:00:30]} Nc6 {[%emt 0:00:30]} 10. a3 {[%emt 0:00:30]} Qc7 {[%emt 0:00:30]} 11. Qe2 {[%emt 0:00:30]} Nc5 {[%emt 0:00:30]} 12. b4 {[%emt 0:00:30]} Nxd3 {[%emt 0:00:30]} 13. cxd3 {[%emt 0:00:30]} Qb6 {[%emt 0:00:30]} 14. Rb1 {[%emt 0:00:30]} O-O {[%emt 0:00:30]} 15. Nb3 {[%emt 0:00:30]} a5 {[%emt 0:00:30]} 16. b5 {[%emt 0:00:30]} Qxb5 {[%emt 0:00:30]} 17. Nbxd4 {[%emt 0:00:30]} Qxb1 {[%emt 0:00:30]} 18. Bb2 {[%emt 0:00:30]} Qa2 {[%emt 0:00:30]} 19. Ra1 {[%emt 0:00:30]} Nxd4 {[%emt 0:00:30]} 20. Nxd4 {[%emt 0:00:30]} Qxa1+ {[%emt 0:00:30]} 21. Bxa1 {[%emt 0:00:30]} Bxa3 {[%emt 0:00:30]} 22. h4 {[%emt 0:00:30]} Bd7 {[%emt 0:00:30]} 23. h5 {[%emt 0:00:30]} h6 {[%emt 0:00:30]} 24. Nc2 {[%emt 0:00:30]} Be7 {[%emt 0:00:30]} 25. f4 {[%emt 0:00:30]} Rfc8 {[%emt 0:00:30]} 26. Bd4 {[%emt 0:00:30]} a4 {[%emt 0:00:30]} 27. g4 {[%emt 0:00:30]} a3 {[%emt 0:00:30]} 28. Qf2 {[%emt 0:00:30]} a2 {[%emt 0:00:30]} 29. Kg2 {[%emt 0:00:30]} Ra4 {[%emt 0:00:30]} 30. Na1 {[%emt 0:00:30]} Bb5 {[%emt 0:00:30]} 31. f5 {[%emt 0:00:30]} Bxd3 {[%emt 0:00:30]} 32. f6 {[%emt 0:00:30]} Be4+ {[%emt 0:00:30]} 33. Kg3 {[%emt 0:00:30]} Ra3+ {[%emt 0:00:30]} 0-1